bitfinex/quotes_SOLUSD_20250829
["timestamp","ask_amount","ask_price","bid_price","bid_amount"]
[1756443366589,7.99097197,217.01,217.0,0.03]
[1756443366795,0.28432314,217.0,216.91,2.40427923]
[1756443367089,0.28432314,217.0,216.72,43.07092283]
[1756443367090,4.17760759,216.92,216.82,4.17760759]
[1756443367386,4.17760759,216.89,216.84,5.3015933]
[1756443367686,4.17760759,216.89,216.85,0.69]
[1756443368270,4.17760759,216.86,216.81,0.69]
[1756443368576,4.17760759,216.86,216.82,0.69]
[1756443368779,4.17760759,216.87,216.82,0.69]
[1756443368980,4.17760759,216.85,216.78,0.69]
[1756443369294,4.17760759,216.82,216.76,4.17760759]
[1756443369472,4.17760759,216.82,216.7,4.17760759]
[1756443369473,4.17760759,216.82,216.77,9.48079207]
[1756443369670,4.17760759,216.82,216.78,0.69]
[1756443369869,4.17760759,216.82,216.79,0.69]
[1756443370471,4.17760759,216.83,216.79,0.69]
[1756443371079,4.17760759,216.83,216.77,8.79079207]
[1756443371277,4.17760759,216.82,216.77,4.61318448]
[1756443371482,37.04,216.84,216.8,4.61254612]
[1756443371793,4.17760759,216.83,216.79,0.03]
[1756443372882,4.17760759,216.83,216.79,0.72]
[1756443373500,41.93760759,216.84,216.79,5.33255132]
[1756443373695,37.04,216.84,216.79,8.82015891]
[1756443373984,37.04,216.84,216.8,4.86760759]
[1756443374168,37.04,216.84,216.8,0.69]
[1756443374365,37.04,216.84,216.8,4.86760759]
[1756443374570,37.04,216.84,216.8,4.17760759]
[1756443375078,37.04,216.84,216.79,4.64255132]
[1756443375079,41.21760759,216.84,216.79,4.64255132]
[1756443375304,37.76,216.84,216.79,8.82015891]
[1756443375702,0.72,216.88,216.83,4.17760759]
[1756443376006,3.85456989,216.94,216.84,4.86760759]
[1756443376007,4.89760759,216.9,216.84,4.86760759]
[1756443376173,41.17760759,216.91,216.85,4.17760759]
[1756443376371,41.17760759,216.91,216.84,0.69]
[1756443376566,41.17760759,216.91,216.86,4.17760759]
[1756443376892,4.89760759,216.9,216.85,4.17760759]
[1756443377083,0.72,216.89,216.85,4.17760759]
[1756443377287,37.0,216.91,216.86,4.17760759]
[1756443377597,37.0,216.91,216.87,4.86760759]
[1756443377967,37.0,216.91,216.88,4.17760759]
[1756443378299,4.17760759,216.93,216.88,4.17760759]
[1756443378594,37.04,216.94,216.88,0.69]
[1756443378784,41.21760759,216.94,216.88,4.86760759]
[1756443379596,41.21760759,216.94,216.89,4.17760759]
[1756443379775,0.72,216.93,216.89,4.17760759]
[1756443380175,0.72,216.92,216.89,4.17760759]
[1756443380896,37.04,216.94,216.87,4.61105614]
[1756443381199,0.72,216.93,216.88,4.17760759]
[1756443381500,0.72,216.92,216.88,4.17760759]
[1756443382001,0.72,216.92,216.88,8.78834094]
[1756443382310,0.72,216.91,216.86,5.30106889]
[1756443382482,0.72,216.91,216.88,4.17760759]
[1756443382807,37.04,216.94,216.88,4.17760759]
[1756443383008,41.93760759,216.94,216.89,4.17760759]
[1756443383301,37.04,216.94,216.89,4.17760759]
[1756443383503,37.04,216.94,216.9,4.17760759]
[1756443383698,37.76,216.94,216.9,4.17760759]
[1756443383872,37.04,216.94,216.91,4.17760759]
[1756443384072,0.72,216.96,216.9,4.61041954]
[1756443384278,0.72,216.96,216.92,4.17760759]
[1756443384488,0.72,216.95,216.92,4.17760759]
[1756443384889,0.72,217.02,216.94,4.17760759]
[1756443385222,0.72,217.02,216.99,4.17760759]
[1756443385514,0.72,217.01,216.99,4.17760759]
[1756443386022,41.17760759,217.04,216.99,4.17760759]
[1756443386208,0.72,217.0,216.99,4.17760759]
[1756443386584,0.72,217.0,216.92,0.69]
[1756443386814,41.85760759,217.0,216.94,4.17760759]
[1756443386992,0.72,216.99,216.94,4.17760759]
[1756443387199,0.72,216.98,216.94,4.17760759]
[1756443387408,0.72,216.97,216.87,4.61105731]
[1756443387590,37.7,216.96,216.87,4.61105731]
[1756443387790,37.7,216.95,216.91,4.17760759]
[1756443388005,0.72,216.94,216.9,4.17760759]
[1756443388689,0.72,216.94,216.79,112.885853]
[1756443388690,26.0,216.92,216.79,13.885853]
[1756443388895,3.0795627,216.91,216.79,0.03]
[1756443389104,4.17760759,216.87,216.8,4.17760759]
[1756443389308,0.72,216.86,216.81,4.17760759]
[1756443389510,0.72,216.89,216.83,4.17760759]
[1756443389899,4.177608,216.88,216.83,4.17760759]
[1756443390096,4.17760759,216.86,216.79,0.03]
[1756443390294,4.17760759,216.84,216.79,0.03]
[1756443390495,4.83760759,216.86,216.8,4.17760759]
[1756443390917,4.61096837,216.88,216.79,0.03]
[1756443390918,4.17760759,216.88,216.81,4.20760759]
[1756443391117,4.83760759,216.88,216.81,4.20760759]
[1756443391628,4.17760759,216.87,216.81,0.03]
[1756443391805,0.66,216.88,216.81,0.03]
[1756443391806,4.17760759,216.85,216.81,0.03]
[1756443391998,4.17760759,216.84,216.81,0.03]
[1756443392623,4.17760759,216.82,216.81,0.03]
[1756443393915,4.83760759,216.82,216.81,0.03]
[1756443394233,4.17760759,216.82,216.81,0.03]
[1756443394727,4.83760759,216.82,216.81,0.03]
[1756443394935,4.17760759,216.82,216.81,0.03]
[1756443395105,0.66,216.82,216.81,0.03]
[1756443395643,3.08100021,216.83,216.81,0.03]
[1756443395794,0.66,216.87,216.81,0.03]
[1756443395995,5.27106654,216.87,216.81,0.03]
[1756443396208,4.17760759,216.83,216.81,0.03]
[1756443396416,4.17760759,216.84,216.81,0.03]
[1756443396802,4.17760759,216.83,216.81,0.03]
[1756443397119,4.17760759,216.85,216.81,0.03]
[1756443397811,4.17760759,216.83,216.81,0.03]
[1756443398212,4.177607,216.9,216.82,4.84760759]
[1756443398419,4.177607,216.9,216.85,4.17760759]
[1756443398614,4.177607,216.9,216.86,4.84760759]
[1756443398801,4.17760759,216.91,216.83,4.61190794]
[1756443399001,4.17760759,216.91,216.85,4.17760759]
[1756443399209,0.66,216.95,216.86,0.67]
[1756443399531,4.17760759,216.92,216.86,4.84760759]
[1756443400101,3.08397665,216.96,216.82,5.28209029]
[1756443400102,4.17760759,216.87,216.82,5.28209029]
[1756443400316,4.17760759,216.87,216.84,4.61169525]
[1756443400523,3.74397665,216.91,216.83,0.67]
[1756443400727,4.17760759,216.86,216.81,0.03]
[1756443400908,4.17760759,216.85,216.81,26.03]
[1756443401103,4.17760759,216.85,216.81,31.31216403]
[1756443401320,3.74397665,216.89,216.81,31.31216403]
[1756443401321,3.08397665,216.88,216.81,31.31216403]
[1756443401504,6.64635944,216.86,216.81,31.31216403]
[1756443402130,6.64635944,216.87,216.82,0.67]
[1756443402308,6.64635944,216.87,216.83,5.28189406]
[1756443403133,7.30635944,216.86,216.81,0.03]
[1756443403332,6.64635944,216.82,216.81,0.03]
[1756443403530,9.73631282,216.82,216.81,0.03]
[1756443403830,10.39631282,216.82,216.81,0.03]
[1756443404531,18.87027211,216.82,216.81,0.03]
[1756443405111,3.08995338,216.82,216.81,0.03]
[1756443405423,6.64635944,216.82,216.81,0.03]
[1756443405722,9.73631282,216.82,216.81,0.03]
[1756443406338,3.08995338,216.82,216.81,0.03]
[1756443406537,9.73631282,216.82,216.81,0.03]
[1756443407436,15.00843347,216.82,216.81,0.03]
[1756443407614,3.08995338,216.82,216.81,0.03]
[1756443407806,9.73631282,216.84,216.81,0.03]
[1756443408012,3.08995338,216.83,216.82,6.64635944]
[1756443408211,3.08995338,216.88,216.82,0.67]
[1756443408411,6.64635944,216.86,216.82,0.67]
[1756443408608,10.39631282,216.85,216.81,0.03]
[1756443408832,7.30635944,216.85,216.81,0.03]
[1756443409131,6.64635944,216.85,216.81,0.03]
[1756443409317,3.09167518,216.84,216.81,0.03]
[1756443409520,6.64635944,216.86,216.81,0.03]
[1756443409723,3.09165276,216.85,216.81,7.34635944]
[1756443409932,3.09165276,216.85,216.81,11.95866276]
[1756443410542,3.09165276,216.85,216.81,7.34635944]
[1756443410917,3.09165276,216.85,216.81,0.7]
[1756443411116,9.7380122,216.85,216.81,0.03]
[1756443411338,3.09165276,216.84,216.81,6.67635944]
[1756443411547,3.09165276,216.85,216.81,7.34635944]
[1756443411732,3.09165276,216.85,216.81,7.31635944]
[1756443412032,6.64635944,216.86,216.81,0.67]
[1756443412341,9.7380122,216.85,216.81,0.67]
[1756443412542,6.64635944,216.85,216.81,0.67]
[1756443412943,5.27117396,216.87,216.74,0.67]
[1756443412944,6.64635944,216.82,216.74,0.67]
[1756443413136,6.64635944,216.82,216.76,6.64635944]
[1756443413333,0.66,216.84,216.77,7.31635944]
[1756443413640,6.64635944,216.82,216.77,7.31635944]
[1756443413839,6.64635944,216.82,216.78,0.67]
[1756443414045,6.64635944,216.81,216.78,0.67]
[1756443414345,6.64635944,216.8,216.74,37.93006344]
[1756443414556,6.64635944,216.79,216.74,0.67]
[1756443415357,6.64635944,216.79,216.75,0.67]
[1756443416237,5.2722451,216.82,216.75,0.67]
[1756443416545,6.64635944,216.79,216.75,0.67]
[1756443417121,6.64635944,216.79,216.73,6.64635944]
[1756443417321,6.64635944,216.78,216.73,6.64635944]
[1756443417524,6.64635944,216.77,216.71,7.31635944]
[1756443417825,6.64635944,216.75,216.7,6.64635944]
[1756443418031,0.66,216.76,216.7,7.31635944]
[1756443418246,7.30635944,216.76,216.7,7.31635944]
[1756443418449,0.66,216.75,216.66,0.67]
[1756443418648,4.61382301,216.74,216.66,0.67]
[1756443418825,6.64635944,216.69,216.63,0.67]
[1756443419134,6.64635944,216.66,216.62,2.40765436]
[1756443419470,6.64635944,216.68,216.62,7.31635944]
[1756443420033,6.64635944,216.67,216.58,2.4080015]
[1756443420236,3.86183864,216.78,216.66,6.64635944]
[1756443420546,6.64635944,216.8,216.74,6.64635944]
[1756443420747,6.51887259,216.79,216.76,6.64635944]
[1756443420957,6.64635944,216.84,216.78,6.64635944]
[1756443421157,9.735013,216.83,216.71,26.0]
[1756443421454,6.64635944,216.84,216.78,6.64635944]
[1756443421859,6.64635944,216.84,216.77,0.66]
[1756443422029,6.64635944,216.84,216.78,6.64635944]
[1756443422233,6.64635944,216.84,216.78,11.25926588]
[1756443422844,7.33635944,216.85,216.78,4.61290644]
[1756443423028,3.08969581,216.84,216.79,6.64635944]
[1756443423229,0.69,216.88,216.82,6.64635944]
[1756443423449,7.33635944,216.88,216.82,6.64635944]
[1756443423647,3.08948387,216.87,216.82,6.64635944]
[1756443423859,6.64635944,216.87,216.82,7.30635944]
[1756443424032,6.64635944,216.87,216.82,0.66]
[1756443424225,6.64635944,216.88,216.83,0.66]
[1756443424456,6.64635944,216.87,216.81,6.64635944]
[1756443424637,0.69,216.87,216.8,11.91885319]
[1756443424960,6.64635944,216.86,216.8,11.91885319]
[1756443425342,6.64635944,216.85,216.8,0.66]
[1756443425544,6.64635944,216.85,216.8,7.30635944]
[1756443425851,6.64635944,216.86,216.81,0.66]
[1756443426043,6.64635944,216.85,216.81,0.66]
[1756443426442,6.64635944,216.85,216.8,6.64635944]
[1756443426638,6.64635944,216.86,216.81,6.64635944]
[1756443426839,6.64635944,216.86,216.81,7.30635944]
[1756443427050,6.64635944,216.86,216.81,0.66]
[1756443427237,3.09106086,216.85,216.8,6.64635944]
[1756443427432,3.09106086,216.85,216.75,16.14763551]
[1756443427433,9.7374203,216.85,216.75,4.61361014]
[1756443427638,6.64635944,216.8,216.74,7.30635944]
[1756443427957,3.78230314,216.79,216.72,7.30635944]
[1756443428144,0.69,216.79,216.72,7.30635944]
[1756443428344,6.64635944,216.79,216.73,6.64635944]
[1756443428750,6.64635944,216.79,216.74,6.64635944]
[1756443428951,0.69,216.82,216.75,7.30635944]
[1756443429153,3.09218124,216.83,216.78,6.64635944]
[1756443429355,6.64635944,216.8,216.74,0.66]
[1756443429566,5.30161158,216.85,216.74,0.66]
[1756443429741,3.09255419,216.84,216.8,6.64635944]
[1756443430056,6.64635944,216.85,216.8,0.66]
[1756443430362,3.15255419,216.88,216.8,6.64635944]
[1756443430363,3.09462919,216.84,216.8,6.64635944]
[1756443430542,6.64635944,216.86,216.81,0.66]
[1756443430741,6.64635944,216.84,216.79,6.64635944]
[1756443430949,6.64635944,216.84,216.8,0.66]
[1756443431340,0.06,216.88,216.81,7.30635944]
[1756443431563,6.64635944,216.86,216.81,7.30635944]
[1756443431737,9.74412985,216.85,216.82,0.66]
[1756443431938,6.64635944,216.86,216.81,6.64635944]
[1756443432245,3.09770904,216.85,216.81,0.66]
[1756443432457,9.74406848,216.85,216.81,0.66]
[1756443432754,3.09770904,216.84,216.81,0.66]
[1756443432954,9.74406848,216.84,216.81,0.66]
[1756443433161,9.74406848,216.83,216.78,0.66]
[1756443433366,3.09770904,216.82,216.78,7.30635944]
[1756443433549,3.09770904,216.82,216.79,0.66]
[1756443433745,3.09770904,216.82,216.8,0.66]
[1756443434444,9.74406848,216.83,216.8,0.66]
[1756443434645,3.09770904,216.82,216.78,5.27296118]
[1756443434960,3.09770904,216.82,216.79,0.66]
[1756443435167,6.64635944,216.84,216.79,0.66]
[1756443435375,6.64635944,216.84,216.76,6.64635944]
[1756443435376,6.64635944,216.81,216.76,6.64635944]
[1756443435672,6.64635944,216.81,216.77,0.66]
[1756443436044,4.61169668,216.84,216.78,0.66]
[1756443436265,38.75,216.86,216.78,0.66]
[1756443436266,6.64635944,216.83,216.78,0.66]
[1756443436456,3.10185756,216.82,216.79,0.66]
[1756443436657,9.748217,216.83,216.8,0.66]
[1756443436845,3.10185756,216.82,216.8,0.66]
[1756443437162,38.02,216.85,216.8,0.66]
[1756443437163,6.64635944,216.83,216.8,0.66]
[1756443437365,3.10185756,216.82,216.8,0.66]
[1756443437550,3.10185756,216.84,216.8,0.66]
[1756443437873,6.64635944,216.82,216.76,0.66]
[1756443438056,6.64635944,216.79,216.74,11.26018245]
[1756443438253,9.748217,216.78,216.74,5.27382301]
[1756443438451,3.10237894,216.77,216.74,0.66]
[1756443438652,3.10237894,216.77,216.74,5.27381738]
[1756443439167,3.10237894,216.77,216.75,6.64635944]
[1756443439354,6.64635944,216.8,216.75,7.30635944]
[1756443439674,44.62635944,216.85,216.79,6.64635944]
[1756443439877,3.10162983,216.84,216.79,6.64635944]
[1756443440059,3.10162983,216.83,216.79,0.66]
[1756443440463,3.10162983,216.82,216.79,0.66]
[1756443440646,9.74798927,216.83,216.79,0.66]
[1756443440849,3.10162983,216.82,216.79,0.66]
[1756443441274,3.10162983,216.82,216.73,26.03]
[1756443441275,6.64635944,216.81,216.75,0.66]
[1756443441477,6.64635944,216.79,216.75,0.66]
[1756443441661,3.10162983,216.78,216.75,0.66]
[1756443441964,3.10162983,216.78,216.73,32.67635944]
[1756443442164,3.10162983,216.78,216.75,0.66]
[1756443443550,9.74798927,216.79,216.75,0.66]
[1756443443754,9.74798927,216.79,216.73,0.03]
[1756443443755,6.64635944,216.77,216.73,0.03]
[1756443443971,3.10162983,216.76,216.73,0.03]
[1756443444668,3.10162983,216.76,216.73,0.69]
[1756443445067,3.10162983,216.76,216.73,5.30402509]
[1756443445274,3.10162983,216.76,216.73,0.69]
[1756443445450,3.10162983,216.76,216.73,5.30401332]
[1756443446355,3.10162983,216.77,216.73,5.30401332]
[1756443448080,6.64635944,216.75,216.73,0.03]
[1756443448253,3.1052977,216.74,216.73,0.03]
[1756443448574,10.44165714,216.74,216.73,0.03]
[1756443448776,48.30165714,216.74,216.73,0.03]
[1756443449868,10.44165714,216.74,216.73,0.03]
[1756443450066,52.89548015,216.74,216.73,0.03]
[1756443450960,52.87548015,216.74,216.73,0.03]
[1756443451164,57.02164193,216.74,216.73,0.03]
[1756443451564,39.59559401,216.71,216.7,0.03]
[1756443451765,56.27793373,216.71,216.7,0.03]
[1756443452080,0.28432314,216.7,216.58,7.31635944]
[1756443452265,6.64635944,216.64,216.59,6.64635944]
[1756443452573,37.9,216.63,216.6,0.67]
[1756443452776,37.9,216.63,216.59,6.64635944]
[1756443452972,37.9,216.63,216.6,0.67]
[1756443453795,6.64635944,216.61,216.55,0.67]
[1756443454088,37.88,216.6,216.55,7.31635944]
[1756443454275,37.88,216.59,216.55,0.67]
[1756443454482,44.52635944,216.58,216.55,0.67]
[1756443454783,6.64635944,216.57,216.53,0.67]
[1756443454971,44.52635944,216.58,216.54,0.67]
[1756443455368,44.52635944,216.58,216.52,0.67]
[1756443455571,44.52635944,216.58,216.52,7.31635944]
[1756443455768,44.52635944,216.58,216.53,0.67]
[1756443456077,37.86,216.57,216.54,0.67]
[1756443456282,0.72,216.61,216.54,0.67]
[1756443456468,6.64635944,216.58,216.54,0.67]
[1756443456786,37.86,216.6,216.49,11.54785998]
[1756443456787,38.56,216.57,216.49,0.67]
[1756443457001,6.64635944,216.54,216.49,0.67]
[1756443457182,6.64635944,216.54,216.5,0.67]
[1756443457359,0.72,216.57,216.49,6.64635944]
[1756443457564,6.64635944,216.54,216.5,0.67]
[1756443457873,37.86,216.53,216.5,11.9351881]
[1756443458269,37.86,216.53,216.5,5.28882866]
[1756443458467,44.50635944,216.53,216.48,31.28928912]
[1756443458777,6.64635944,216.49,216.36,5.29191753]
[1756443458982,4.08460915,216.52,216.36,5.29191753]
[1756443458983,6.64635944,216.4,216.36,5.29191753]
[1756443459162,38.06,216.42,216.37,0.67]
[1756443459506,44.70635944,216.42,216.37,0.67]
[1756443459688,6.64635944,216.41,216.37,0.67]
[1756443459997,38.06,216.4,216.36,4.62191753]
[1756443460163,4.61893764,216.5,216.35,7.0326422]
[1756443460364,6.64635944,216.42,216.35,7.0326422]
[1756443460591,6.64635944,216.4,216.35,7.0326422]
[1756443460900,6.64635944,216.39,216.36,26.67]
[1756443461389,6.64635944,216.42,216.37,0.67]
[1756443461574,6.64635944,216.42,216.38,0.67]
[1756443461888,6.64635944,216.41,216.38,0.67]
[1756443462085,6.64635944,216.42,216.39,4.62128564]
[1756443462481,0.63,216.49,216.41,6.64635944]
[1756443462690,38.2,216.48,216.42,6.64635944]
[1756443462867,0.63,216.52,216.42,7.31635944]
[1756443463188,9.02741944,216.64,216.48,6.64635944]
[1756443463486,6.64635944,216.55,216.5,6.64635944]
[1756443463682,38.3,216.55,216.52,6.64635944]
[1756443463986,25.15589339,216.7,216.53,11.93448419]
[1756443463987,38.28,216.57,216.53,11.93448419]
[1756443464167,38.3,216.58,216.54,7.31635944]
[1756443464367,38.3,216.58,216.53,4.61812475]
[1756443464565,38.3,216.58,216.53,11.93448419]
[1756443465367,38.3,216.58,216.54,6.64635944]
[1756443465567,38.3,216.58,216.53,4.61812475]
[1756443465872,38.3,216.58,216.54,6.64635944]
[1756443466065,38.26,216.57,216.55,6.64635944]
[1756443466260,6.64635944,216.62,216.56,7.31635944]
[1756443466463,22.05435438,216.71,216.48,0.67]
[1756443466464,6.64635944,216.57,216.48,0.67]
[1756443466665,6.64635944,216.57,216.51,6.64635944]
[1756443466888,0.63,216.62,216.52,0.67]
[1756443467066,38.32,216.63,216.59,6.64635944]
[1756443467275,45.61635944,216.66,216.6,6.64635944]
[1756443467776,38.34,216.66,216.62,6.64635944]
[1756443467972,38.34,216.66,216.61,6.64635944]
[1756443468384,44.98635944,216.66,216.6,11.26305044]
[1756443468583,6.64635944,216.61,216.54,0.67]
[1756443468777,6.64635944,216.58,216.53,6.64635944]
[1756443468989,6.64635944,216.59,216.53,7.31635944]
[1756443469598,38.99,216.61,216.55,6.64635944]
[1756443469797,38.36,216.61,216.55,6.64635944]
[1756443470003,6.64635944,216.65,216.59,6.64635944]
[1756443470297,6.70635944,216.7,216.64,6.64635944]
[1756443470498,0.06,216.7,216.65,6.64635944]
[1756443470681,0.06,216.7,216.65,7.31635944]
[1756443470994,0.06,216.7,216.58,22.8066697]
[1756443470995,0.06,216.7,216.66,0.67]
[1756443471496,0.06,216.7,216.63,26.0]
[1756443471497,0.06,216.7,216.63,26.67]
[1756443471791,6.64635944,216.68,216.62,6.64635944]
[1756443472023,39.01,216.69,216.61,6.64635944]
[1756443472181,39.01,216.69,216.62,32.64635944]
[1756443472372,6.64635944,216.68,216.63,6.64635944]
[1756443472567,6.64635944,216.67,216.62,6.64635944]
[1756443472790,6.64635944,216.67,216.61,33.31635944]
[1756443472983,6.64635944,216.67,216.58,4.6172315]
[1756443473191,6.64635944,216.64,216.57,0.67]
[1756443473395,0.63,216.67,216.57,7.31635944]
[1756443473607,0.63,216.67,216.59,6.64635944]
[1756443473774,6.64635944,216.65,216.59,6.64635944]
[1756443474518,6.64635944,216.64,216.59,6.64635944]
[1756443474795,6.64635944,216.64,216.59,0.67]
[1756443474994,6.64635944,216.64,216.59,7.31635944]
[1756443475198,6.64635944,216.66,216.6,7.31635944]
[1756443475587,6.64635944,216.65,216.6,7.31635944]
[1756443476199,6.64635944,216.65,216.6,0.67]
[1756443477504,6.64635944,216.65,216.6,7.31635944]
[1756443478098,6.64635944,216.65,216.6,0.67]
[1756443478292,0.28432314,216.68,216.6,7.31635944]
[1756443478493,6.64635944,216.66,216.6,7.31635944]
[1756443479206,38.38,216.69,216.62,6.64635944]
[1756443479502,6.64635944,216.67,216.62,6.64635944]
[1756443480280,6.64635944,216.67,216.6,4.61676042]
[1756443480281,0.06,216.7,216.65,6.64635944]
[1756443480485,0.06,216.7,216.63,0.69]
[1756443480686,0.06,216.7,216.68,6.64635944]
[1756443481379,0.06,216.7,216.67,6.64635944]
[1756443481597,0.06,216.7,216.67,7.33635944]
[1756443482194,0.06,216.7,216.67,0.69]
[1756443482514,0.06,216.7,216.68,7.33635944]
[1756443482816,0.06,216.7,216.69,6.64635944]
[1756443482984,0.06,216.7,216.69,7.33635944]
[1756443483603,0.06,216.7,216.69,33.33635944]
[1756443484184,0.06,216.7,216.69,11.95124706]
[1756443484394,0.06,216.73,216.72,26.0]
[1756443484588,1e-08,216.73,216.72,46.52627659]
[1756443484811,1e-08,216.73,216.72,47.21627659]
[1756443485715,1e-08,216.73,216.72,71.49635944]
[1756443486099,0.06,216.88,216.76,26.0]
[1756443486413,0.06,216.88,216.86,6.64635944]
[1756443486794,0.06,216.88,216.87,6.64635944]
[1756443487610,0.06,216.88,216.87,7.33635944]
[1756443488412,0.06,216.88,216.87,11.94741675]
[1756443488817,0.06,216.88,216.87,7.33635944]
[1756443489005,0.06,216.88,216.87,6.64635944]
[1756443489712,0.06,216.88,216.87,7.33635944]
[1756443490018,0.06,216.88,216.87,11.94741675]
[1756443490320,0.06,216.88,216.87,7.33635944]
[1756443491905,0.06,216.88,216.87,11.94741675]
[1756443492108,0.06,216.88,216.87,7.33635944]
[1756443492305,0.06,216.88,216.87,11.94741675]
[1756443493135,0.06,216.88,216.87,7.33635944]
[1756443493297,0.06,216.88,216.77,31.53254928]
[1756443493620,0.06,216.88,216.82,0.69]
[1756443493810,0.06,216.88,216.85,6.64635944]
[1756443493997,0.06,216.88,216.86,6.64635944]
[1756443494413,0.06,216.88,216.77,0.69]
[1756443494414,7.27635944,216.87,216.77,0.69]
[1756443494617,6.64635944,216.86,216.81,6.64635944]
[1756443494813,6.64635944,216.86,216.77,0.69]
[1756443495010,7.27635944,216.85,216.77,0.69]
[1756443495235,7.27635944,216.85,216.8,6.64635944]
[1756443495905,6.64635944,216.84,216.78,11.25933111]
[1756443496106,6.64635944,216.84,216.78,6.64635944]
[1756443496323,6.64635944,216.82,216.76,32.64635944]
[1756443496629,6.64635944,216.82,216.77,6.64635944]
[1756443497339,6.64635944,216.82,216.77,0.69]
[1756443497622,5.24170874,216.84,216.77,7.33635944]
[1756443497813,6.64635944,216.81,216.77,0.69]
[1756443498016,6.64635944,216.79,216.74,6.64635944]
[1756443498211,16.14094688,216.84,216.69,4.61477346]
[1756443498415,6.64635944,216.77,216.71,6.64635944]
[1756443498718,6.64635944,216.76,216.71,6.64635944]
[1756443498910,6.64635944,216.76,216.71,7.33635944]
[1756443499115,6.64635944,216.75,216.71,0.69]
[1756443499626,6.64635944,216.76,216.71,33.33635944]
[1756443499828,4.6132832,216.77,216.71,7.33635944]
[1756443500032,6.64635944,216.76,216.71,7.33635944]
[1756443500217,6.64635944,216.77,216.71,7.33635944]
[1756443500620,6.64635944,216.77,216.72,6.64635944]
[1756443500918,6.64635944,216.77,216.72,7.33635944]
[1756443501102,6.64635944,216.79,216.74,6.64635944]
[1756443501307,6.64635944,216.79,216.74,7.33635944]
[1756443501736,4.61265473,216.8,216.73,6.64635944]
[1756443502115,6.64635944,216.78,216.73,6.64635944]
[1756443502439,6.64635944,216.77,216.71,11.95080536]
[1756443502920,6.64635944,216.77,216.72,6.64635944]
[1756443503307,6.64635944,216.77,216.73,0.69]
[1756443503504,6.64635944,216.74,216.7,0.03]
[1756443503709,6.64635944,216.73,216.7,0.03]
[1756443504331,6.64635944,216.74,216.7,0.03]
[1756443504932,0.63,216.76,216.7,0.03]
[1756443505237,6.64635944,216.74,216.7,0.03]
[1756443507550,6.64635944,216.76,216.71,7.33635944]
[1756443507913,6.64635944,216.77,216.71,7.33635944]
[1756443508234,0.06,216.78,216.74,6.64635944]
[1756443508540,0.06,216.78,216.75,0.69]
[1756443509311,0.06,216.78,216.75,11.94988793]
[1756443509574,0.06,216.78,216.77,6.64635944]
[1756443509914,0.06,216.78,216.77,7.33635944]
[1756443511220,0.06,216.78,216.76,6.64635944]
[1756443511730,0.06,216.78,216.76,7.30635944]
[1756443512035,0.06,216.78,216.75,11.25994837]
[1756443512215,0.06,216.78,216.75,7.30635944]
[1756443512419,0.06,216.78,216.76,6.64635944]
[1756443513335,0.06,216.78,216.75,6.64635944]
[1756443513730,0.06,216.78,216.76,6.64635944]
[1756443513921,0.06,216.78,216.75,6.64635944]
[1756443514332,0.06,216.78,216.77,6.64635944]
[1756443514636,0.06,216.78,216.76,7.30635944]
[1756443516446,0.06,216.78,216.77,7.30635944]
[1756443516646,0.06,216.78,216.7,0.69]
[1756443516647,0.63,216.77,216.7,0.69]
[1756443516952,6.64635944,216.75,216.7,0.69]
[1756443517241,0.06,216.78,216.71,0.66]
[1756443517446,6.64635944,216.77,216.71,7.30635944]
[1756443517651,3.0770776,216.76,216.71,7.30635944]
[1756443517950,3.0770776,216.76,216.72,0.66]
[1756443518120,0.06,216.78,216.72,7.30635944]
[1756443518325,9.78343704,216.78,216.72,7.30635944]
[1756443518527,3.0770776,216.77,216.72,0.66]
[1756443518848,9.72343704,216.77,216.72,7.30635944]
[1756443519029,3.0770776,216.76,216.71,4.61445437]
[1756443519233,3.0770776,216.76,216.72,7.30635944]
[1756443520242,0.06,216.78,216.75,6.64635944]